[Event "Titled Tuesday Blitz May 30 Late 2023"]
[White "Przybylski, Wojciech"]
[Black "Oliveira, Tiago Batista"]
[WhiteFideId "1117599"]
[BlackFideId "2108291"]
[WhiteElo "2222"]
[BlackElo "1962"]
[Result "0-1"]
[Round "09"]
[TimeControl "180+2"]
[Date "2023.05.31"]
[WhiteClock "0:00:09"]
[BlackClock "0:00:07"]

1. e4 {[%clk 0:03:00]}  e5 {[%clk 0:02:58]} 2. Nf3 {[%clk 0:03:00]}  Nc6 {[%clk 0:02:58]} 3. Bb5 {[%clk 0:03:00]}  a6 {[%clk 0:02:58]} 4. Bxc6 {[%clk 0:03:00]}  dxc6 {[%clk 0:02:57]} 5. O-O {[%clk 0:03:00]}  Bg4 {[%clk 0:02:57]} 6. h3 {[%clk 0:02:56]}  h5 {[%clk 0:02:57]} 7. d3 {[%clk 0:02:56]}  Qf6 {[%clk 0:02:55]} 8. Be3 {[%clk 0:02:55]}  Ne7 {[%clk 0:02:49]} 9. Nbd2 {[%clk 0:02:55]}  Ng6 {[%clk 0:02:44]} 10. hxg4 {[%clk 0:02:45]}  hxg4 {[%clk 0:02:41]} 11. Ng5 {[%clk 0:02:26]}  Nf4 {[%clk 0:02:40]} 12. Qxg4 {[%clk 0:01:04]}  Qxg5 {[%clk 0:02:38]} 13. f3 {[%clk 0:01:04]}  Nh3+ {[%clk 0:02:09]} 14. gxh3 {[%clk 0:01:03]}  Qxe3+ {[%clk 0:02:09]} 15. Rf2 {[%clk 0:01:04]}  Bc5 {[%clk 0:02:07]} 16. Qg3 {[%clk 0:00:56]}  Qxd2 {[%clk 0:02:04]} 17. Qxe5+ {[%clk 0:00:55]}  Kd7 {[%clk 0:01:51]} 18. Qf5+ {[%clk 0:00:46]}  Kd6 {[%clk 0:01:30]} 19. Qxc5+ {[%clk 0:00:41]}  Kxc5 {[%clk 0:01:29]} 20. Rxd2 {[%clk 0:00:41]}  Rxh3 {[%clk 0:01:19]} 21. Kf2 {[%clk 0:00:38]}  Rah8 {[%clk 0:01:09]} 22. Ke3 {[%clk 0:00:35]}  g5 {[%clk 0:01:05]} 23. d4+ {[%clk 0:00:29]}  Kd6 {[%clk 0:00:59]} 24. Rg1 {[%clk 0:00:29]}  R8h5 {[%clk 0:00:44]} 25. c4 {[%clk 0:00:27]}  Ke6 {[%clk 0:00:35]} 26. d5+ {[%clk 0:00:25]}  cxd5 {[%clk 0:00:34]} 27. cxd5+ {[%clk 0:00:25]}  Ke5 {[%clk 0:00:32]} 28. Rc2 {[%clk 0:00:23]}  Kd6 {[%clk 0:00:17]} 29. Rc3 {[%clk 0:00:18]}  f6 {[%clk 0:00:17]} 30. Kd4 {[%clk 0:00:18]}  Rh2 {[%clk 0:00:16]} 31. Rgc1 {[%clk 0:00:16]}  Rd2+ {[%clk 0:00:15]} 32. Ke3 {[%clk 0:00:15]}  Rhh2 {[%clk 0:00:15]} 33. Rd3 {[%clk 0:00:12]}  Rhe2+ {[%clk 0:00:12]} 34. Kd4 {[%clk 0:00:12]}  Rxb2 {[%clk 0:00:12]} 35. Rh1 {[%clk 0:00:09]}  Rxa2 {[%clk 0:00:12]} 36. Rb3 {[%clk 0:00:07]}  Rad2+ {[%clk 0:00:11]} 37. Kc3 {[%clk 0:00:07]}  b5 {[%clk 0:00:11]} 38. Rh6 {[%clk 0:00:05]}  Ke5 {[%clk 0:00:10]} 39. Rh7 {[%clk 0:00:05]}  Rc2+ {[%clk 0:00:09]} 40. Kd3 {[%clk 0:00:04]}  Red2+ {[%clk 0:00:08]} 41. Ke3 {[%clk 0:00:04]}  Re2+ {[%clk 0:00:08]} 42. Kd3 {[%clk 0:00:04]}  Kf4 {[%clk 0:00:08]} 43. Kd4 {[%clk 0:00:03]}  Red2+ {[%clk 0:00:08]} 44. Rd3 {[%clk 0:00:03]}  Rxd3+ {[%clk 0:00:08]} 45. Kxd3 {[%clk 0:00:04]}  Rc4 {[%clk 0:00:08]} 46. Rf7 {[%clk 0:00:04]}  Ke5 {[%clk 0:00:07]} 47. Re7+ {[%clk 0:00:04]}  Kd6 {[%clk 0:00:08]} 48. Re6+ {[%clk 0:00:04]}  Kc5 {[%clk 0:00:07]} 49. Rc6+ {[%clk 0:00:05]}  Kb4 {[%clk 0:00:07]} 50. Rxa6 {[%clk 0:00:05]}  Rc3+ {[%clk 0:00:07]} 51. Kd4 {[%clk 0:00:05]}  Rxf3 {[%clk 0:00:06]} 52. Rc6 {[%clk 0:00:05]}  Rf4 {[%clk 0:00:05]} 53. Ke3 {[%clk 0:00:04]}  Rf1 {[%clk 0:00:05]} 54. Rxc7 {[%clk 0:00:04]}  Re1+ {[%clk 0:00:05]} 55. Kf3 {[%clk 0:00:04]}  g4+ {[%clk 0:00:05]} 56. Kf4 {[%clk 0:00:05]}  g3 {[%clk 0:00:05]} 57. Rg7 {[%clk 0:00:05]}  Rf1+ {[%clk 0:00:03]} 58. Ke3 {[%clk 0:00:05]}  Kc5 {[%clk 0:00:03]} 59. Rxg3 {[%clk 0:00:04]}  b4 {[%clk 0:00:03]} 60. Rg8 {[%clk 0:00:04]}  b3 {[%clk 0:00:03]} 61. Rc8+ {[%clk 0:00:04]}  Kd6 {[%clk 0:00:03]} 62. Rb8 {[%clk 0:00:04]}  Rb1 {[%clk 0:00:02]} 63. Rb6+ {[%clk 0:00:04]}  Ke7 {[%clk 0:00:02]} 64. Rb7+ {[%clk 0:00:04]}  Ke8 {[%clk 0:00:02]} 65. Kf4 {[%clk 0:00:04]}  b2 {[%clk 0:00:03]} 66. Kf5 {[%clk 0:00:03]}  Rf1+ {[%clk 0:00:03]} 67. Ke6 {[%clk 0:00:03]}  b1=Q {[%clk 0:00:03]} 68. Re7+ {[%clk 0:00:04]}  Kd8 {[%clk 0:00:02]} 69. Rd7+ {[%clk 0:00:04]}  Kc8 {[%clk 0:00:03]} 70. Kd6 {[%clk 0:00:04]}  Qb6+ {[%clk 0:00:03]} 71. Ke7 {[%clk 0:00:04]}  Qc5+ {[%clk 0:00:03]} 72. d6 {[%clk 0:00:04]}  Qe5+ {[%clk 0:00:03]} 73. Kf7 {[%clk 0:00:05]}  Kxd7 {[%clk 0:00:03]} 74. Kf8 {[%clk 0:00:06]}  Kxd6 {[%clk 0:00:03]} 75. Kf7 {[%clk 0:00:06]}  Qxe4 {[%clk 0:00:04]} 76. Kf8 {[%clk 0:00:06]}  f5 {[%clk 0:00:05]} 77. Kf7 {[%clk 0:00:06]}  f4 {[%clk 0:00:06]} 78. Kf6 {[%clk 0:00:07]}  f3 {[%clk 0:00:06]} 79. Kg5 {[%clk 0:00:08]}  f2 {[%clk 0:00:07]} 80. Kh5 {[%clk 0:00:08]}  Re1 {[%clk 0:00:07]} 81. Kg5 {[%clk 0:00:09]}  f1=Q {[%clk 0:00:07]} 82. Kh6 {[%clk 0:00:09]}  Qeg2 {[%clk 0:00:07]} 0-1


[Site "https://www.chess.com"]

[Event "Titled Tuesday Blitz May 30 Late 2023"]
[White "Torres Hernandez, Leslie Carolin"]
[Black "Silva Rosas, Natalia"]
[WhiteFideId "8400504"]
[BlackFideId "3000575"]
[WhiteElo "1920"]
[BlackElo "1651"]
[Result "1-0"]
[Round "09"]
[TimeControl "180+2"]
[Date "2023.05.31"]
[WhiteClock "0:00:03"]
[BlackClock "0:00:08"]

1. e4 {[%clk 0:00:31]}  c5 {[%clk 0:02:57]} 2. Nf3 {[%clk 0:00:25]}  e6 {[%clk 0:02:57]} 3. d4 {[%clk 0:00:25]}  cxd4 {[%clk 0:02:57]} 4. Nxd4 {[%clk 0:00:26]}  a6 {[%clk 0:02:56]} 5. c4 {[%clk 0:00:26]}  Bc5 {[%clk 0:02:55]} 6. Nb3 {[%clk 0:00:25]}  Ba7 {[%clk 0:02:54]} 7. Nc3 {[%clk 0:00:25]}  Nc6 {[%clk 0:02:54]} 8. Be2 {[%clk 0:00:24]}  Nf6 {[%clk 0:02:52]} 9. O-O {[%clk 0:00:20]}  Qc7 {[%clk 0:02:50]} 10. c5 {[%clk 0:00:19]}  Bb8 {[%clk 0:02:46]} 11. g3 {[%clk 0:00:18]}  d6 {[%clk 0:02:40]} 12. Bf4 {[%clk 0:00:14]}  e5 {[%clk 0:02:38]} 13. Bg5 {[%clk 0:00:14]}  Qd8 {[%clk 0:02:35]} 14. Nd5 {[%clk 0:00:13]}  h6 {[%clk 0:02:12]} 15. Bxf6 {[%clk 0:00:12]}  gxf6 {[%clk 0:02:07]} 16. f4 {[%clk 0:00:09]}  Ba7 {[%clk 0:01:48]} 17. fxe5 {[%clk 0:00:07]}  f5 {[%clk 0:01:37]} 18. exd6 {[%clk 0:00:06]}  Qxd6 {[%clk 0:01:15]} 19. Kg2 {[%clk 0:00:06]}  Qd8 {[%clk 0:01:10]} 20. exf5 {[%clk 0:00:04]}  Bb8 {[%clk 0:00:40]} 21. Bc4 {[%clk 0:00:04]}  Ne5 {[%clk 0:00:33]} 22. Qe2 {[%clk 0:00:03]}  O-O {[%clk 0:00:27]} 23. Rad1 {[%clk 0:00:03]}  Qg5 {[%clk 0:00:20]} 24. h4 {[%clk 0:00:03]}  Qg4 {[%clk 0:00:16]} 25. Qxg4+ {[%clk 0:00:03]}  Nxg4 {[%clk 0:00:08]} 26. Rf3 {[%clk 0:00:03]} 1-0


[Site "https://www.chess.com"]

[Event "Titled Tuesday Blitz May 30 Late 2023"]
[White "Manu_ChessExcelsior"]
[Black "Kujawski, Adam"]
[BlackFideId "1100920"]
[WhiteElo "2075"]
[BlackElo "2054"]
[Result "0-1"]
[Round "09"]
[TimeControl "180+2"]
[Date "2023.05.31"]
[WhiteClock "0:00:09"]
[BlackClock "0:00:49"]

1. e4 {[%clk 0:02:13]}  e5 {[%clk 0:02:51]} 2. Nf3 {[%clk 0:02:12]}  Nc6 {[%clk 0:02:51]} 3. Bc4 {[%clk 0:02:12]}  Nf6 {[%clk 0:02:51]} 4. d3 {[%clk 0:02:12]}  d5 {[%clk 0:02:51]} 5. exd5 {[%clk 0:02:12]}  Nxd5 {[%clk 0:02:52]} 6. O-O {[%clk 0:02:10]}  Nb6 {[%clk 0:02:51]} 7. Bb3 {[%clk 0:02:09]}  Bg4 {[%clk 0:02:50]} 8. Re1 {[%clk 0:02:01]}  Qe7 {[%clk 0:02:48]} 9. c3 {[%clk 0:01:36]}  O-O-O {[%clk 0:02:46]} 10. h3 {[%clk 0:01:30]}  Bh5 {[%clk 0:02:45]} 11. Qe2 {[%clk 0:01:29]}  f6 {[%clk 0:02:43]} 12. a4 {[%clk 0:01:28]}  a5 {[%clk 0:02:42]} 13. Nbd2 {[%clk 0:01:24]}  Bf7 {[%clk 0:02:38]} 14. Bxf7 {[%clk 0:01:23]}  Qxf7 {[%clk 0:02:38]} 15. Ne4 {[%clk 0:01:13]}  Kb8 {[%clk 0:02:36]} 16. Be3 {[%clk 0:01:12]}  Nd5 {[%clk 0:02:31]} 17. Reb1 {[%clk 0:00:58]}  h6 {[%clk 0:02:27]} 18. b4 {[%clk 0:00:56]}  f5 {[%clk 0:02:14]} 19. Nc5 {[%clk 0:00:45]}  Nxc3 {[%clk 0:02:07]} 20. Qb2 {[%clk 0:00:40]}  Nxb1 {[%clk 0:02:06]} 21. Rxb1 {[%clk 0:00:39]}  Nxb4 {[%clk 0:02:01]} 22. Nxe5 {[%clk 0:00:38]}  Qd5 {[%clk 0:01:54]} 23. Nc4 {[%clk 0:00:36]}  Bxc5 {[%clk 0:01:48]} 24. Nxa5 {[%clk 0:00:36]}  Bxe3 {[%clk 0:01:03]} 25. Qxb4 {[%clk 0:00:34]}  Bb6 {[%clk 0:01:00]} 26. Nc4 {[%clk 0:00:32]}  Qc5 {[%clk 0:00:54]} 27. Qb2 {[%clk 0:00:16]}  Qxf2+ {[%clk 0:00:54]} 28. Qxf2 {[%clk 0:00:14]}  Bxf2+ {[%clk 0:00:55]} 29. Kxf2 {[%clk 0:00:14]}  Rxd3 {[%clk 0:00:55]} 30. Na5 {[%clk 0:00:15]}  b6 {[%clk 0:00:55]} 31. Nc6+ {[%clk 0:00:14]}  Kb7 {[%clk 0:00:55]} 32. Ne5 {[%clk 0:00:15]}  Ra3 {[%clk 0:00:52]} 33. Nd3 {[%clk 0:00:14]}  Rxd3 {[%clk 0:00:51]} 34. Ke2 {[%clk 0:00:11]}  Rd4 {[%clk 0:00:50]} 35. a5 {[%clk 0:00:11]}  Re8+ {[%clk 0:00:49]} 36. Kf3 {[%clk 0:00:10]}  Ree4 {[%clk 0:00:49]} 37. g3 {[%clk 0:00:09]}  Rd3+ {[%clk 0:00:49]} 0-1


[Site "https://www.chess.com"]

[Event "Titled Tuesday Blitz May 30 Late 2023"]
[White "Gerbelli Neto, Eduardo"]
[Black "Alexikov, Alexander"]
[WhiteFideId "2103281"]
[BlackFideId "14103958"]
[WhiteElo "2178"]
[BlackElo "2186"]
[Result "1-0"]
[Round "09"]
[TimeControl "180+2"]
[Date "2023.05.31"]
[WhiteClock "0:00:20"]
[BlackClock "0:00:04"]

1. e4 {[%clk 0:03:00]}  c5 {[%clk 0:02:57]} 2. Nc3 {[%clk 0:02:59]}  Nc6 {[%clk 0:02:56]} 3. f4 {[%clk 0:03:00]}  g6 {[%clk 0:02:56]} 4. Nf3 {[%clk 0:03:01]}  Bg7 {[%clk 0:02:55]} 5. Bc4 {[%clk 0:03:02]}  e6 {[%clk 0:02:55]} 6. f5 {[%clk 0:03:02]}  a6 {[%clk 0:02:52]} 7. fxe6 {[%clk 0:03:00]}  fxe6 {[%clk 0:02:44]} 8. d3 {[%clk 0:03:00]}  Nge7 {[%clk 0:02:41]} 9. O-O {[%clk 0:03:00]}  O-O {[%clk 0:02:39]} 10. Bg5 {[%clk 0:02:59]}  h6 {[%clk 0:02:38]} 11. Bh4 {[%clk 0:02:59]}  g5 {[%clk 0:02:37]} 12. Bg3 {[%clk 0:02:56]}  d5 {[%clk 0:02:36]} 13. Bb3 {[%clk 0:02:55]}  b5 {[%clk 0:02:32]} 14. a4 {[%clk 0:02:34]}  b4 {[%clk 0:02:11]} 15. Ne2 {[%clk 0:02:28]}  Ng6 {[%clk 0:01:51]} 16. c3 {[%clk 0:02:14]}  a5 {[%clk 0:01:48]} 17. Bf2 {[%clk 0:01:55]}  Qd6 {[%clk 0:01:41]} 18. Ng3 {[%clk 0:01:53]}  Nf4 {[%clk 0:01:32]} 19. exd5 {[%clk 0:01:47]}  exd5 {[%clk 0:01:31]} 20. Ne4 {[%clk 0:01:48]}  Qd8 {[%clk 0:01:19]} 21. Bxc5 {[%clk 0:01:46]}  Kh7 {[%clk 0:01:14]} 22. Bxf8 {[%clk 0:01:41]}  Bxf8 {[%clk 0:01:08]} 23. Ng3 {[%clk 0:01:22]}  Ba6 {[%clk 0:01:05]} 24. Bc2 {[%clk 0:01:19]}  Kg8 {[%clk 0:01:02]} 25. Re1 {[%clk 0:01:18]}  d4 {[%clk 0:01:01]} 26. c4 {[%clk 0:01:11]}  Bb7 {[%clk 0:00:53]} 27. Ne4 {[%clk 0:01:05]}  Bg7 {[%clk 0:00:49]} 28. Qd2 {[%clk 0:01:04]}  Qd7 {[%clk 0:00:46]} 29. Nc5 {[%clk 0:00:56]}  Qf7 {[%clk 0:00:43]} 30. Nxb7 {[%clk 0:00:45]}  Qxb7 {[%clk 0:00:43]} 31. c5 {[%clk 0:00:46]}  b3 {[%clk 0:00:40]} 32. Bd1 {[%clk 0:00:44]}  Rf8 {[%clk 0:00:36]} 33. Re4 {[%clk 0:00:36]}  Kh7 {[%clk 0:00:35]} 34. Be2 {[%clk 0:00:36]}  Qd7 {[%clk 0:00:26]} 35. Re1 {[%clk 0:00:36]}  Qd5 {[%clk 0:00:26]} 36. Qd1 {[%clk 0:00:33]}  Bf6 {[%clk 0:00:21]} 37. Bf1 {[%clk 0:00:33]}  Bd8 {[%clk 0:00:18]} 38. Ne5 {[%clk 0:00:29]}  Nb4 {[%clk 0:00:17]} 39. Qg4 {[%clk 0:00:24]}  h5 {[%clk 0:00:10]} 40. Qg3 {[%clk 0:00:20]}  Qxc5 {[%clk 0:00:04]} 41. h4 {[%clk 0:00:20]} 1-0


[Site "https://www.chess.com"]

[Event "Titled Tuesday Blitz May 30 Late 2023"]
[White "Martinez, Ayelen"]
[Black "Celestino, Rafael Teixeira"]
[WhiteFideId "118702"]
[BlackFideId "2108925"]
[WhiteElo "2125"]
[BlackElo "2320"]
[Result "1-0"]
[Round "09"]
[TimeControl "180+2"]
[Date "2023.05.31"]
[WhiteClock "0:00:38"]
[BlackClock "0:00:11"]

1. e4 {[%clk 0:02:32]}  e5 {[%clk 0:02:57]} 2. Nf3 {[%clk 0:02:31]}  Nc6 {[%clk 0:02:58]} 3. Bb5 {[%clk 0:02:32]}  Nf6 {[%clk 0:02:57]} 4. O-O {[%clk 0:02:32]}  a6 {[%clk 0:02:58]} 5. Ba4 {[%clk 0:02:32]}  b5 {[%clk 0:02:58]} 6. Bb3 {[%clk 0:02:33]}  Bc5 {[%clk 0:02:59]} 7. c3 {[%clk 0:02:33]}  O-O {[%clk 0:02:58]} 8. d4 {[%clk 0:02:33]}  exd4 {[%clk 0:02:59]} 9. cxd4 {[%clk 0:02:34]}  Bb6 {[%clk 0:02:59]} 10. e5 {[%clk 0:02:34]}  Ne4 {[%clk 0:02:58]} 11. Qe2 {[%clk 0:02:30]}  d5 {[%clk 0:02:57]} 12. Rd1 {[%clk 0:02:28]}  Bg4 {[%clk 0:02:57]} 13. Be3 {[%clk 0:02:28]}  Ne7 {[%clk 0:02:28]} 14. Nc3 {[%clk 0:02:20]}  Nxc3 {[%clk 0:02:27]} 15. bxc3 {[%clk 0:02:20]}  Nf5 {[%clk 0:02:25]} 16. a4 {[%clk 0:02:15]}  Nxe3 {[%clk 0:02:22]} 17. Qxe3 {[%clk 0:02:15]}  Kh8 {[%clk 0:02:10]} 18. h3 {[%clk 0:02:13]}  Bh5 {[%clk 0:02:08]} 19. Rd2 {[%clk 0:02:10]}  Qd7 {[%clk 0:02:03]} 20. Ng5 {[%clk 0:01:58]}  Rae8 {[%clk 0:01:50]} 21. axb5 {[%clk 0:01:53]}  axb5 {[%clk 0:01:50]} 22. Qd3 {[%clk 0:01:45]}  Bg6 {[%clk 0:01:48]} 23. Qg3 {[%clk 0:01:39]}  Ra8 {[%clk 0:01:35]} 24. Re1 {[%clk 0:01:38]}  Ra3 {[%clk 0:01:31]} 25. Ba2 {[%clk 0:01:15]}  h6 {[%clk 0:01:12]} 26. e6 {[%clk 0:01:13]}  Qe7 {[%clk 0:01:04]} 27. Nf3 {[%clk 0:01:01]}  Rxc3 {[%clk 0:01:00]} 28. Bxd5 {[%clk 0:00:54]}  Bh5 {[%clk 0:00:52]} 29. Qe5 {[%clk 0:00:50]}  Bxf3 {[%clk 0:00:44]} 30. Bxf3 {[%clk 0:00:50]}  fxe6 {[%clk 0:00:39]} 31. d5 {[%clk 0:00:47]}  Rcxf3 {[%clk 0:00:35]} 32. gxf3 {[%clk 0:00:43]}  Ba5 {[%clk 0:00:32]} 33. Rde2 {[%clk 0:00:39]}  Bxe1 {[%clk 0:00:30]} 34. Rxe1 {[%clk 0:00:40]}  Rxf3 {[%clk 0:00:21]} 35. dxe6 {[%clk 0:00:38]}  Rxh3 {[%clk 0:00:16]} 36. Qxb5 {[%clk 0:00:35]}  Qh4 {[%clk 0:00:07]} 37. Qb8+ {[%clk 0:00:32]}  Kh7 {[%clk 0:00:07]} 38. Qb1+ {[%clk 0:00:32]}  Kg8 {[%clk 0:00:07]} 39. Qf5 {[%clk 0:00:32]}  Rh1+ {[%clk 0:00:06]} 40. Kg2 {[%clk 0:00:31]}  Qh3+ {[%clk 0:00:07]} 41. Qxh3 {[%clk 0:00:31]}  Rxh3 {[%clk 0:00:07]} 42. Kxh3 {[%clk 0:00:31]}  Kf8 {[%clk 0:00:07]} 43. Kg4 {[%clk 0:00:32]}  Ke7 {[%clk 0:00:08]} 44. Kf5 {[%clk 0:00:33]}  c5 {[%clk 0:00:08]} 45. Ke5 {[%clk 0:00:33]}  c4 {[%clk 0:00:07]} 46. Rc1 {[%clk 0:00:33]}  h5 {[%clk 0:00:08]} 47. Rxc4 {[%clk 0:00:34]}  h4 {[%clk 0:00:08]} 48. Rc7+ {[%clk 0:00:34]}  Kd8 {[%clk 0:00:08]} 49. Rxg7 {[%clk 0:00:35]}  h3 {[%clk 0:00:09]} 50. Rh7 {[%clk 0:00:35]}  h2 {[%clk 0:00:09]} 51. Rxh2 {[%clk 0:00:36]}  Ke7 {[%clk 0:00:09]} 52. Rh7+ {[%clk 0:00:36]}  Kf8 {[%clk 0:00:10]} 53. Kf6 {[%clk 0:00:36]}  Kg8 {[%clk 0:00:10]} 54. Ra7 {[%clk 0:00:37]}  Kh8 {[%clk 0:00:10]} 55. Kg6 {[%clk 0:00:37]}  Kg8 {[%clk 0:00:11]} 56. Ra8# {[%clk 0:00:38]} 1-0


[Site "https://www.chess.com"]

[Event "Titled Tuesday Blitz May 30 Late 2023"]
[White "deloewre"]
[Black "Schut, Han"]
[BlackFideId "1005561"]
[WhiteElo "2110"]
[BlackElo "2024"]
[Result "0-1"]
[Round "09"]
[TimeControl "180+2"]
[Date "2023.05.31"]
[WhiteClock "0:00:01"]
[BlackClock "0:00:06"]

1. d4 {[%clk 0:03:00]}  Nf6 {[%clk 0:02:59]} 2. c4 {[%clk 0:02:59]}  g6 {[%clk 0:02:59]} 3. Nf3 {[%clk 0:02:56]}  Bg7 {[%clk 0:02:58]} 4. g3 {[%clk 0:02:55]}  O-O {[%clk 0:02:57]} 5. Bg2 {[%clk 0:02:54]}  d5 {[%clk 0:02:58]} 6. cxd5 {[%clk 0:02:52]}  Nxd5 {[%clk 0:02:59]} 7. Nc3 {[%clk 0:02:49]}  c5 {[%clk 0:02:58]} 8. e4 {[%clk 0:02:34]}  Nxc3 {[%clk 0:02:49]} 9. bxc3 {[%clk 0:02:33]}  Nc6 {[%clk 0:02:43]} 10. d5 {[%clk 0:02:24]}  Ne5 {[%clk 0:02:31]} 11. Nxe5 {[%clk 0:02:18]}  Bxe5 {[%clk 0:02:32]} 12. Bd2 {[%clk 0:02:13]}  c4 {[%clk 0:02:17]} 13. O-O {[%clk 0:02:10]}  b5 {[%clk 0:02:17]} 14. f4 {[%clk 0:02:09]}  Bg7 {[%clk 0:02:11]} 15. e5 {[%clk 0:02:06]}  Bb7 {[%clk 0:01:47]} 16. Be3 {[%clk 0:02:04]}  a6 {[%clk 0:01:41]} 17. Qd2 {[%clk 0:02:02]}  Qd7 {[%clk 0:01:33]} 18. a4 {[%clk 0:01:53]}  Rfd8 {[%clk 0:01:29]} 19. Rfd1 {[%clk 0:01:51]}  f6 {[%clk 0:01:16]} 20. exf6 {[%clk 0:01:39]}  Bxf6 {[%clk 0:01:13]} 21. Be4 {[%clk 0:01:25]}  e6 {[%clk 0:00:59]} 22. Bd4 {[%clk 0:01:10]}  Bxd4+ {[%clk 0:00:54]} 23. Qxd4 {[%clk 0:01:04]}  Bxd5 {[%clk 0:00:48]} 24. Bxd5 {[%clk 0:01:00]}  Qxd5 {[%clk 0:00:40]} 25. Qf6 {[%clk 0:00:47]}  Qxd1+ {[%clk 0:00:23]} 26. Rxd1 {[%clk 0:00:44]}  Rxd1+ {[%clk 0:00:24]} 27. Kg2 {[%clk 0:00:43]}  Rd6 {[%clk 0:00:20]} 28. axb5 {[%clk 0:00:41]}  axb5 {[%clk 0:00:20]} 29. Qe7 {[%clk 0:00:39]}  Rb6 {[%clk 0:00:19]} 30. h4 {[%clk 0:00:35]}  Rab8 {[%clk 0:00:18]} 31. h5 {[%clk 0:00:34]}  R8b7 {[%clk 0:00:19]} 32. Qe8+ {[%clk 0:00:31]}  Kg7 {[%clk 0:00:19]} 33. hxg6 {[%clk 0:00:28]}  hxg6 {[%clk 0:00:19]} 34. Kh3 {[%clk 0:00:26]}  b4 {[%clk 0:00:19]} 35. cxb4 {[%clk 0:00:24]}  Rc7 {[%clk 0:00:19]} 36. Kg4 {[%clk 0:00:22]}  c3 {[%clk 0:00:19]} 37. Kg5 {[%clk 0:00:19]}  Rf7 {[%clk 0:00:16]} 38. g4 {[%clk 0:00:15]}  c2 {[%clk 0:00:14]} 39. Qc8 {[%clk 0:00:13]}  Rb5+ {[%clk 0:00:14]} 40. Kh4 {[%clk 0:00:12]}  Rxb4 {[%clk 0:00:15]} 41. Qxc2 {[%clk 0:00:09]}  Rbxf4 {[%clk 0:00:14]} 42. Qc3+ {[%clk 0:00:09]}  Kh7 {[%clk 0:00:14]} 43. Kg5 {[%clk 0:00:07]}  Rf1 {[%clk 0:00:11]} 44. Qh3+ {[%clk 0:00:06]}  Kg7 {[%clk 0:00:11]} 45. Qc3+ {[%clk 0:00:05]}  Kg8 {[%clk 0:00:11]} 46. Qc8+ {[%clk 0:00:04]}  Kg7 {[%clk 0:00:10]} 47. Qxe6 {[%clk 0:00:03]}  R1f6 {[%clk 0:00:09]} 48. Qe5 {[%clk 0:00:02]}  Kh7 {[%clk 0:00:06]} 49. Qxf6 {[%clk 0:00:02]}  Rxf6 {[%clk 0:00:07]} 50. Kxf6 {[%clk 0:00:01]}  g5 {[%clk 0:00:06]} 0-1


[Site "https://www.chess.com"]

[Event "Titled Tuesday Blitz May 30 Late 2023"]
[White "Kornyukov, Alexey"]
[Black "Maluco_do_Natal_00"]
[WhiteFideId "4150457"]
[WhiteElo "2352"]
[BlackElo "2073"]
[Result "1-0"]
[Round "09"]
[TimeControl "180+2"]
[Date "2023.05.31"]
[WhiteClock "0:00:18"]
[BlackClock "0:00:02"]

1. d4 {[%clk 0:03:00]}  d5 {[%clk 0:02:59]} 2. c4 {[%clk 0:02:59]}  c6 {[%clk 0:02:59]} 3. Nf3 {[%clk 0:02:59]}  Nf6 {[%clk 0:02:58]} 4. e3 {[%clk 0:02:59]}  g6 {[%clk 0:02:58]} 5. Bd3 {[%clk 0:02:53]}  Bg7 {[%clk 0:02:58]} 6. O-O {[%clk 0:02:53]}  O-O {[%clk 0:02:56]} 7. b3 {[%clk 0:02:53]}  a6 {[%clk 0:02:57]} 8. Bb2 {[%clk 0:02:53]}  Re8 {[%clk 0:02:50]} 9. Nbd2 {[%clk 0:02:52]}  Nbd7 {[%clk 0:02:32]} 10. h3 {[%clk 0:02:48]}  Nf8 {[%clk 0:02:08]} 11. Rc1 {[%clk 0:02:46]}  h6 {[%clk 0:02:03]} 12. Qc2 {[%clk 0:02:42]}  e6 {[%clk 0:02:01]} 13. Rfd1 {[%clk 0:02:40]}  Bd7 {[%clk 0:01:44]} 14. Ne5 {[%clk 0:02:39]}  Rc8 {[%clk 0:01:39]} 15. e4 {[%clk 0:02:39]}  Qe7 {[%clk 0:01:17]} 16. Ndf3 {[%clk 0:02:26]}  dxe4 {[%clk 0:01:14]} 17. Bxe4 {[%clk 0:02:27]}  Nxe4 {[%clk 0:01:12]} 18. Qxe4 {[%clk 0:02:28]}  Red8 {[%clk 0:01:07]} 19. Qe3 {[%clk 0:02:07]}  Be8 {[%clk 0:00:59]} 20. c5 {[%clk 0:01:46]}  Nd7 {[%clk 0:00:56]} 21. Nc4 {[%clk 0:01:45]}  Ra8 {[%clk 0:00:40]} 22. Nd6 {[%clk 0:01:42]}  Nf6 {[%clk 0:00:36]} 23. Ne5 {[%clk 0:01:37]}  Nd5 {[%clk 0:00:34]} 24. Qf3 {[%clk 0:01:34]}  Rxd6 {[%clk 0:00:27]} 25. cxd6 {[%clk 0:01:33]}  Qxd6 {[%clk 0:00:27]} 26. Nc4 {[%clk 0:01:31]}  Qd8 {[%clk 0:00:19]} 27. Ba3 {[%clk 0:01:29]}  Bf8 {[%clk 0:00:16]} 28. Bxf8 {[%clk 0:01:25]}  Kxf8 {[%clk 0:00:17]} 29. Ne3 {[%clk 0:01:23]}  Kg7 {[%clk 0:00:13]} 30. Rc5 {[%clk 0:01:12]}  Qf6 {[%clk 0:00:10]} 31. Qe4 {[%clk 0:01:08]}  Rd8 {[%clk 0:00:08]} 32. a3 {[%clk 0:01:04]}  Qe7 {[%clk 0:00:07]} 33. b4 {[%clk 0:01:00]}  f5 {[%clk 0:00:07]} 34. Qf3 {[%clk 0:00:41]}  Nxe3 {[%clk 0:00:03]} 35. Qxe3 {[%clk 0:00:38]}  Bf7 {[%clk 0:00:03]} 36. a4 {[%clk 0:00:26]}  Rd7 {[%clk 0:00:03]} 37. b5 {[%clk 0:00:20]}  axb5 {[%clk 0:00:03]} 38. axb5 {[%clk 0:00:19]}  Qxc5 {[%clk 0:00:03]} 39. dxc5 {[%clk 0:00:18]}  Rxd1+ {[%clk 0:00:03]} 40. Kh2 {[%clk 0:00:19]}  cxb5 {[%clk 0:00:03]} 41. Qe5+ {[%clk 0:00:19]}  Kh7 {[%clk 0:00:02]} 42. Qc7 {[%clk 0:00:18]}  Kg7 {[%clk 0:00:02]} 43. Qxb7 {[%clk 0:00:18]} 1-0


[Site "https://www.chess.com"]